lending/lending_fUSD_20250210
["ID","MTS","AMOUNT","RATE_DAILY","PERIOD"]
[352657099,1739218233592,-500.0,0.00010958,2]
[352657100,1739218233602,-509.04,0.00010958,2]
[352657101,1739218233612,-500.0,0.00010958,2]
[352657102,1739218233622,-500.0,0.00010958,2]
[352657103,1739218233632,-500.0,0.00010958,2]
[352657104,1739218233641,-500.0,0.00010958,2]
[352657105,1739218233651,-500.0,0.00010958,2]
[352657106,1739218233661,-500.0,0.00010958,2]
[352657107,1739218233671,-640.52,0.00010958,2]
[352657108,1739218233682,-500.0,0.00010958,2]
[352657109,1739218233692,-500.0,0.00010958,2]
[352657110,1739218233702,-500.0,0.00010958,2]
[352657111,1739218233712,-500.0,0.00010958,2]
[352657112,1739218233722,-500.0,0.00010958,2]
[352657113,1739218233736,-523.75,0.00010958,2]
[352657114,1739218233746,-451.50609262,0.00010958,2]
[352657115,1739218234086,-48.49390738,0.00010958,2]
[352657116,1739218234097,-753.2,0.00010958,2]
[352657117,1739218234107,-545.44135117,0.00010958,2]
[352657118,1739218234119,-117.00864883,0.00010958,2]
[352657119,1739218234129,-167.23561117,0.00010958,2]
[352657128,1739218238091,-332.76438883,0.00010958,2]
[352657129,1739218238102,-500.0,0.00010958,2]
[352657130,1739218238112,-39.78561117,0.00010958,2]
[352657131,1739218238197,-460.21438883,0.00010958,2]
[352657132,1739218238207,-500.0,0.00010958,2]
[352657133,1739218238216,-593.93,0.00010958,2]
[352657134,1739218238226,-500.0,0.00010958,2]
[352657135,1739218238236,-621.93,0.00010958,2]
[352657136,1739218238245,-500.0,0.00010958,2]
[352657137,1739218238254,-500.0,0.00010958,2]
[352657138,1739218238264,-500.0,0.00010958,2]
[352657139,1739218238273,-500.0,0.00010958,2]
[352657140,1739218238282,-500.0,0.00010958,2]
[352657141,1739218238292,-500.0,0.00010958,2]
[352657142,1739218238301,-500.0,0.00010958,2]
[352657143,1739218238311,-500.0,0.00010958,2]
[352657144,1739218238320,-500.0,0.00010958,2]
[352657145,1739218238330,-849.72,0.00010958,2]
[352657146,1739218238339,-500.0,0.00010958,2]
[352657147,1739218238349,-932.59,0.00010958,2]
[352657148,1739218238358,-500.0,0.00010958,2]
[352657150,1739218238368,-500.0,0.00010958,2]
[352657152,1739218238378,-500.0,0.00010958,2]
[352657154,1739218238388,-500.0,0.00010958,2]
[352657156,1739218238397,-544.670482,0.00010958,2]
[352657158,1739218238407,-500.0,0.00010958,2]
[352657160,1739218238416,-599.16,0.00010958,2]
[352657162,1739218238426,-500.0,0.00010958,2]
[352657164,1739218238435,-500.0,0.00010958,2]
[352657166,1739218238445,-168.786985,0.00010958,2]
[352657168,1739218238454,-500.0,0.00010958,2]
[352657170,1739218238464,-500.0,0.00010958,2]
[352657172,1739218238474,-726.32,0.00010958,2]
[352657174,1739218238484,-500.0,0.00010958,2]
[352657176,1739218238494,-500.0,0.00010958,2]
[352657178,1739218238504,-500.0,0.00010958,2]
[352657180,1739218238513,-155.916589,0.00010958,2]
[352657182,1739218238523,-500.0,0.00010958,2]
[352657184,1739218238532,-500.0,0.00010958,2]
[352657186,1739218238541,-689.34,0.00010958,2]
[352657188,1739218238550,-500.0,0.00010958,2]
[352657190,1739218238560,-628.44,0.00010958,2]
[352657191,1739218238569,-500.0,0.00010958,2]
[352657193,1739218238579,-500.0,0.00010958,2]
[352657195,1739218238588,-500.0,0.00010958,2]
[352657197,1739218238598,-500.0,0.00010958,2]
[352657199,1739218238607,-534.91273311,0.00010958,2]
[352657201,1739218238616,-500.0,0.00010958,2]
[352657204,1739218238626,-919.9,0.00010958,2]
[352657205,1739218238636,-500.0,0.00010958,2]
[352657207,1739218238646,-500.0,0.00010958,2]
[352657209,1739218238655,-430.72981043,0.00010958,2]
[352657211,1739218238665,-371.29792101,0.00010958,2]
[352657213,1739218238674,-510.746775,0.00010958,2]
[352657215,1739218238684,-500.0,0.00010958,2]
[352657217,1739218238693,-500.0,0.00010958,2]
[352657219,1739218238703,-500.0,0.00010958,2]
[352657221,1739218238712,-500.0,0.00010958,2]
[352657223,1739218238721,-824.39,0.00010958,2]
[352657225,1739218238734,-206.52776348,0.00010958,2]
[352657227,1739218238747,-500.0,0.00010958,2]
[352657229,1739218238757,-500.0,0.00010958,2]
[352657231,1739218238767,-501.21391441,0.00010958,2]
[352657233,1739218238776,-500.0,0.00010958,2]
[352657235,1739218238785,-151.483255,0.00010958,2]
[352657237,1739218238795,-500.0,0.00010958,2]
[352657239,1739218238805,-500.0,0.00010958,2]
[352657241,1739218238814,-500.0,0.00010958,2]
[352657243,1739218238824,-517.91,0.00010958,2]
[352657245,1739218238833,-500.0,0.00010958,2]
[352657247,1739218238843,-500.0,0.00010958,2]
[352657249,1739218238852,-500.0,0.00010958,2]
[352657251,1739218238861,-500.0,0.00010958,2]
[352657253,1739218238871,-525.71235759,0.00010958,2]
[352657255,1739218238880,-500.0,0.00010958,2]
[352657257,1739218238888,-500.0,0.00010958,2]
[352657258,1739218238898,-500.0,0.00010958,2]
[352657260,1739218238908,-500.0,0.00010958,2]
[352657262,1739218238918,-500.0,0.00010958,2]
[352657264,1739218238928,-240.05721928,0.00010958,2]
[352657266,1739218238937,-500.0,0.00010958,2]
[352657268,1739218238946,-500.0,0.00010958,2]
[352657270,1739218238955,-500.0,0.00010958,2]
[352657271,1739218238964,-500.0,0.00010958,2]
[352657272,1739218238974,-500.0,0.00010958,2]
[352657273,1739218238984,-579.26485516,0.00010958,2]
[352657274,1739218238994,-500.0,0.00010958,2]
[352657275,1739218239003,-420.18691896,0.00010958,2]
[352657276,1739218239013,-553.38,0.00010958,2]
[352657277,1739218239023,-500.0,0.00010958,2]
[352657278,1739218239032,-747.39,0.00010958,2]
[352657279,1739218239041,-500.0,0.00010958,2]
[352657280,1739218239050,-487.64934166,0.00010958,2]
[352657281,1739218239065,-360.59065834,0.00010958,2]
[352657282,1739218239074,-500.0,0.00010958,2]
[352657284,1739218239083,-500.0,0.00010958,2]
[352657286,1739218239093,-400.0,0.00010958,2]
[352657288,1739218239102,-846.2,0.00010958,2]
[352657290,1739218239111,-447.51075857,0.00010958,2]
[352657292,1739218239121,-500.0,0.00010958,2]
[352657294,1739218239130,-278.47049354,0.00010958,2]
[352657296,1739218239139,-500.0,0.00010958,2]
[352657298,1739218239148,-508.88973151,0.00010958,2]
[352657300,1739218239158,-500.0,0.00010958,2]
[352657302,1739218239167,-206.07852718,0.00010958,2]
[352657306,1739218239191,-293.92147282,0.00010958,2]
[352657308,1739218239200,-227.56194113,0.00010958,2]
[352657311,1739218239219,-272.43805887,0.00010958,2]
[352657313,1739218239228,-500.0,0.00010958,2]
[352657315,1739218239238,-120.02512292,0.00010958,2]
[352657435,1739218240311,-32.94986708,0.00010958,2]
[352657437,1739218240320,-485.77378346,0.00010958,2]
[352657439,1739218240332,-14.22621654,0.00010958,2]
[352657441,1739218240341,-500.0,0.00010958,2]
[352657444,1739218240351,-664.41,0.00010958,2]
[352657446,1739218240361,-447.29234576,0.00010958,2]
[352657449,1739218240386,-52.70765424,0.00010958,2]
[352657451,1739218240395,-500.0,0.00010958,2]
[352657453,1739218240405,-500.0,0.00010958,2]
[352657455,1739218240415,-573.19,0.00010958,2]
[352657457,1739218240424,-500.0,0.00010958,2]
[352657459,1739218240433,-500.0,0.00010958,2]
[352657461,1739218240442,-500.0,0.00010958,2]
[352657463,1739218240451,-800.31,0.00010958,2]
[352657465,1739218240460,-501.54637186,0.00010958,2]
[352657467,1739218240470,-500.0,0.00010958,2]
[352657469,1739218240480,-500.0,0.00010958,2]
[352657471,1739218240489,-500.0,0.00010958,2]
[352657473,1739218240499,-525.15,0.00010958,2]
[352657475,1739218240508,-887.65,0.00010958,2]
[352657477,1739218240517,-500.0,0.00010958,2]
[352657478,1739218240527,-500.0,0.00010958,2]
[352657480,1739218240536,-500.0,0.00010958,2]
[352657482,1739218240545,-513.37071642,0.00010958,2]
[352657484,1739218240554,-500.0,0.00010958,2]
[352657486,1739218240563,-541.24,0.00010958,2]
[352657487,1739218240573,-500.0,0.00010958,2]
[352657489,1739218240582,-836.45,0.00010958,2]
[352657491,1739218240591,-500.0,0.00010958,2]
[352657493,1739218240601,-662.71,0.00010958,2]
[352657495,1739218240610,-500.0,0.00010958,2]
[352657497,1739218240619,-500.0,0.00010958,2]
[352657499,1739218240629,-500.0,0.00010958,2]
[352657501,1739218240638,-500.0,0.00010958,2]
[352657502,1739218240647,-819.07,0.00010958,2]
[352657504,1739218240656,-500.0,0.00010958,2]
[352657506,1739218240665,-500.0,0.00010958,2]
[352657508,1739218240674,-500.0,0.00010958,2]
[352657510,1739218240683,-776.78,0.00010958,2]
[352657512,1739218240692,-500.0,0.00010958,2]
[352657513,1739218240701,-500.0,0.00010958,2]
[352657515,1739218240711,-777.78,0.00010958,2]
[352657517,1739218240720,-698.46,0.00010958,2]
[352657519,1739218240729,-500.0,0.00010958,2]
[352657521,1739218240739,-500.0,0.00010958,2]
[352657523,1739218240748,-993.18,0.00010958,2]
[352657525,1739218240757,-500.0,0.00010958,2]
[352657527,1739218240766,-500.0,0.00010958,2]
[352657528,1739218240776,-500.0,0.00010958,2]
[352657530,1739218240785,-802.6,0.00010958,2]
[352657532,1739218240794,-500.0,0.00010958,2]
[352657534,1739218240803,-500.0,0.00010958,2]
[352657536,1739218240812,-500.0,0.00010958,2]
[352657538,1739218240821,-500.0,0.00010958,2]
[352657540,1739218240830,-1084.78,0.00010958,2]
[352657541,1739218240841,-500.0,0.00010958,2]
[352657543,1739218240851,-500.0,0.00010958,2]
[352657545,1739218240860,-500.0,0.00010958,2]
[352657547,1739218240869,-500.0,0.00010958,2]
[352657549,1739218240878,-500.0,0.00010958,2]
[352657551,1739218240887,-49.09225696,0.00010958,2]
[352657553,1739218240900,-415.405,0.00010958,2]
[352657556,1739218240920,-35.50274304,0.00010958,2]
[352657557,1739218240933,-586.12,0.00010958,2]
[352657559,1739218240942,-444.68438391,0.00010958,2]
[352657561,1739218240951,-500.0,0.00010958,2]
[352657563,1739218240960,-500.0,0.00010958,2]
[352657565,1739218240970,-500.0,0.00010958,2]
[352657567,1739218240979,-500.0,0.00010958,2]
[352657569,1739218240988,-678.74,0.00010958,2]
[352657570,1739218240998,-500.0,0.00010958,2]
[352657572,1739218241009,-500.0,0.00010958,2]
[352657574,1739218241018,-500.0,0.00010958,2]
[352657576,1739218241027,-500.0,0.00010958,2]
[352657578,1739218241036,-500.0,0.00010958,2]
[352657580,1739218241045,-500.0,0.00010958,2]
[352657582,1739218241054,-500.0,0.00010958,2]
[352657584,1739218241064,-500.0,0.00010958,2]
[352657586,1739218241073,-509.74,0.00010958,2]
[352657588,1739218241082,-500.0,0.00010958,2]
[352657590,1739218241092,-218.68835765,0.00010958,2]
[352657611,1739218241306,-500.0,0.00010958,2]
[352657613,1739218241316,-500.0,0.00010958,2]
[352657615,1739218241325,-500.0,0.00010958,2]
[352657616,1739218241334,-500.0,0.00010958,2]
[352657618,1739218241345,-500.0,0.00010958,2]
[352657620,1739218241354,-500.0,0.00010958,2]
[352657622,1739218241363,-1215.13,0.00010958,2]
[352657624,1739218241373,-500.0,0.00010958,2]
[352657626,1739218241382,-500.0,0.00010958,2]
[352657628,1739218241391,-500.0,0.00010958,2]
[352657630,1739218241400,-500.0,0.00010958,2]
[352657632,1739218241409,-791.9,0.00010958,2]
[352657634,1739218241418,-601.71558488,0.00010958,2]
[352657635,1739218241427,-500.0,0.00010958,2]
[352657637,1739218241436,-515.61156187,0.00010958,2]
[352657639,1739218241446,-500.0,0.00010958,2]
[352657641,1739218241455,-500.0,0.00010958,2]
[352657643,1739218241465,-500.0,0.00010958,2]
[352657645,1739218241474,-500.0,0.00010958,2]
[352657647,1739218241484,-500.0,0.00010958,2]
[352657649,1739218241493,-500.0,0.00010958,2]
[352657651,1739218241503,-500.0,0.00010958,2]
[352657653,1739218241512,-500.0,0.00010958,2]
[352657655,1739218241521,-500.0,0.00010958,2]
[352657656,1739218241531,-502.45588604,0.00010958,2]
[352657658,1739218241540,-500.0,0.00010958,2]
[352657660,1739218241550,-1204.79,0.00010958,2]
[352657662,1739218241559,-500.0,0.00010958,2]
[352657664,1739218241568,-500.0,0.00010958,2]
[352657666,1739218241577,-628.74,0.00010958,2]
[352657668,1739218241587,-500.0,0.00010958,2]
[352657670,1739218241596,-500.0,0.00010958,2]
[352657672,1739218241605,-500.0,0.00010958,2]
[352657673,1739218241614,-500.0,0.00010958,2]
[352657675,1739218241622,-500.0,0.00010958,2]
[352657677,1739218241631,-500.0,0.00010958,2]
[352657679,1739218241640,-979.51,0.00010958,2]
[352657681,1739218241650,-500.0,0.00010958,2]
[352657683,1739218241658,-500.0,0.00010958,2]
[352657685,1739218241667,-500.0,0.00010958,2]
[352657687,1739218241677,-500.0,0.00010958,2]
[352657689,1739218241686,-500.0,0.00010958,2]
[352657691,1739218241694,-500.0,0.00010958,2]
[352657692,1739218241704,-538.14,0.00010958,2]
[352657694,1739218241714,-571.56,0.00010958,2]
[352657696,1739218241723,-1123.4,0.00010958,2]
[352657698,1739218241732,-802.61,0.00010958,2]
[352657700,1739218241741,-500.0,0.00010958,2]
[352657702,1739218241751,-500.0,0.00010958,2]
[352657704,1739218241760,-2082.86,0.00010958,2]
[352657706,1739218241769,-500.0,0.00010958,2]
[352657708,1739218241779,-2552.06,0.00010958,2]
[352657710,1739218241788,-749.52,0.00010958,2]
[352657712,1739218241798,-500.0,0.00010958,2]
[352657714,1739218241807,-889.81,0.00010958,2]
[352657716,1739218241816,-500.0,0.00010958,2]
[352657718,1739218241827,-660.67,0.00010958,2]
[352657719,1739218241836,-500.0,0.00010958,2]
[352657721,1739218241845,-500.0,0.00010958,2]
[352657723,1739218241854,-500.0,0.00010958,2]
[352657725,1739218241863,-500.0,0.00010958,2]
[352657727,1739218241871,-1044.53,0.00010958,2]
[352657729,1739218241880,-739.53,0.00010958,2]
[352657731,1739218241889,-1046.87,0.00010958,2]
[352657733,1739218241898,-500.0,0.00010958,2]
[352657735,1739218241907,-500.0,0.00010958,2]
[352657737,1739218241917,-500.0,0.00010958,2]
[352657738,1739218241928,-500.0,0.00010958,2]
[352657740,1739218241937,-500.0,0.00010958,2]
[352657742,1739218241946,-500.0,0.00010958,2]
[352657744,1739218241955,-500.0,0.00010958,2]
[352657746,1739218241965,-1030.93,0.00010958,2]
[352657748,1739218241975,-211.90954256,0.00010958,2]
[352657751,1739218241997,-268.032,0.00010958,2]
[352657754,1739218242020,-99.04845744,0.00010958,2]
[352657756,1739218242029,-167.60554226,0.00010958,2]
[352657760,1739218242055,-332.39445774,0.00010958,2]
[352657762,1739218242064,-155.38736797,0.00010958,2]
[352657876,1739218243150,-344.61263203,0.00010958,2]
[352657878,1739218243160,-500.0,0.00010958,2]
[352657881,1739218243172,-434.79942281,0.00010958,2]
[352657884,1739218243184,-65.20057719,0.00010958,2]
[352657887,1739218243193,-480.65482781,0.00010958,2]
[352657898,1739218243257,-19.34517219,0.00010958,2]
[352657900,1739218243266,-500.0,0.00010958,2]
[352657902,1739218243277,-500.0,0.00010958,2]
[352657904,1739218243286,-102.48086182,0.00010958,2]
[352657906,1739218243298,-347.15587172,0.00010958,2]
[352657909,1739218243309,-50.36326646,0.00010958,2]
[352657911,1739218243319,-274.34073322,0.00010958,2]
[352657913,1739218243330,-225.65926678,0.00010958,2]
[352657915,1739218243340,-2634.14,0.00010958,2]
[352657917,1739218243349,-500.0,0.00010958,2]
[352657919,1739218243359,-500.0,0.00010958,2]
[352657921,1739218243368,-500.0,0.00010958,2]
[352657923,1739218243377,-2641.91,0.00010958,2]
[352657925,1739218243387,-500.0,0.00010958,2]
[352657927,1739218243396,-637.85,0.00010958,2]
[352657929,1739218243404,-500.0,0.00010958,2]
[352657931,1739218243414,-542.54,0.00010958,2]
[352657933,1739218243423,-500.0,0.00010958,2]
[352657935,1739218243432,-500.0,0.00010958,2]
[352657937,1739218243441,-821.34,0.00010958,2]
[352657939,1739218243451,-500.0,0.00010958,2]
[352657941,1739218243460,-1399.36,0.00010958,2]
[352657943,1739218243469,-553.86,0.00010958,2]
[352657945,1739218243479,-500.0,0.00010958,2]
[352657947,1739218243488,-513.91,0.00010958,2]
[352657949,1739218243497,-32.18073322,0.00010958,2]
[352657953,1739218243530,-467.81926678,0.00010958,2]
[352657955,1739218243540,-501.60911878,0.00010958,2]
[352657957,1739218243549,-500.0,0.00010958,2]
[352657959,1739218243558,-1444.47,0.00010958,2]
[352657961,1739218243567,-555.89,0.00010958,2]
[352657963,1739218243576,-500.0,0.00010958,2]
[352657965,1739218243586,-1106.32,0.00010958,2]
[352657967,1739218243596,-501.78971069,0.00010958,2]
[352657969,1739218243605,-1773.67,0.00010958,2]
[352657971,1739218243614,-500.0,0.00010958,2]
[352657973,1739218243623,-500.0,0.00010958,2]
[352657975,1739218243633,-810.7,0.00010958,2]
[352657979,1739218243643,-1190.31,0.00010958,2]
[352657983,1739218243652,-508.37653454,0.00010958,2]
[352657986,1739218243661,-501.57516278,0.00010958,2]
[352657991,1739218243671,-2083.06,0.00010958,2]
[352657996,1739218243681,-500.0,0.00010958,2]
[352657999,1739218243690,-502.28,0.00010958,2]
[352658002,1739218243699,-500.0,0.00010958,2]
[352658004,1739218243708,-500.0,0.00010958,2]
[352658006,1739218243717,-438.24905188,0.00010958,2]
[352658008,1739218243727,-500.0,0.00010958,2]
[352658010,1739218243737,-1429.51,0.00010958,2]
[352658012,1739218243747,-518.77,0.00010958,2]
[352658014,1739218243756,-500.0,0.00010958,2]
[352658016,1739218243766,-1274.7,0.00010958,2]
[352658018,1739218243775,-500.0,0.00010958,2]
[352658020,1739218243784,-500.0,0.00010958,2]
[352658022,1739218243793,-500.0,0.00010958,2]
[352658024,1739218243802,-500.0,0.00010958,2]
[352658026,1739218243812,-2511.02,0.00010958,2]
[352658028,1739218243821,-581.89,0.00010958,2]
[352658030,1739218243830,-1526.51,0.00010958,2]
[352658032,1739218243839,-724.95,0.00010958,2]
[352658034,1739218243849,-1653.85,0.00010958,2]
[352658036,1739218243858,-500.0,0.00010958,2]
[352658038,1739218243868,-387.58597967,0.00010958,2]
[352658040,1739218243878,-750.0,0.00010958,2]
[352658042,1739218243888,-500.0,0.00010958,2]
[352658044,1739218243897,-934.28,0.00010958,2]
[352658046,1739218243907,-500.0,0.00010958,2]
[352658048,1739218243917,-500.0,0.00010958,2]
[352658050,1739218243928,-534.02,0.00010958,2]
[352658052,1739218243938,-868.1,0.00010958,2]
[352658054,1739218243947,-1098.41,0.00010958,2]
[352658056,1739218243957,-4723.05,0.00010958,2]
[352658058,1739218243967,-622.98,0.00010958,2]
[352658060,1739218243976,-500.0,0.00010958,2]
[352658062,1739218243986,-500.0,0.00010958,2]
[352658064,1739218243996,-1340.5,0.00010958,2]
[352658066,1739218244006,-500.0,0.00010958,2]
[352658068,1739218244016,-500.0,0.00010958,2]
[352658070,1739218244025,-500.0,0.00010958,2]
[352658072,1739218244035,-1422.56,0.00010958,2]
[352658074,1739218244044,-585.7,0.00010958,2]
[352658076,1739218244054,-500.0,0.00010958,2]
[352658078,1739218244063,-981.1,0.00010958,2]
[352658080,1739218244072,-1634.95,0.00010958,2]
[352658082,1739218244081,-500.0,0.00010958,2]
[352658084,1739218244090,-500.0,0.00010958,2]
[352658086,1739218244100,-500.0,0.00010958,2]
[352658088,1739218244109,-500.0,0.00010958,2]
[352658090,1739218244118,-500.0,0.00010958,2]
[352658092,1739218244127,-1213.87,0.00010958,2]
[352658094,1739218244136,-500.0,0.00010958,2]
[352658096,1739218244145,-500.0,0.00010958,2]
[352658098,1739218244154,-894.42,0.00010958,2]
[352658100,1739218244163,-546.47,0.00010958,2]
[352658102,1739218244173,-500.0,0.00010958,2]
[352658103,1739218244183,-1125.05,0.00010958,2]
[352658106,1739218244192,-500.0,0.00010958,2]
[352658108,1739218244202,-974.68,0.00010958,2]
[352658110,1739218244211,-1152.17,0.00010958,2]
[352658111,1739218244221,-913.39,0.00010958,2]
[352658114,1739218244230,-500.0,0.00010958,2]
[352658116,1739218244239,-500.0,0.00010958,2]
[352658117,1739218244249,-511.01,0.00010958,2]
[352658119,1739218244258,-500.0,0.00010958,2]
[352658122,1739218244268,-3735.41,0.00010958,2]
[352658124,1739218244277,-606.83,0.00010958,2]
[352658126,1739218244286,-696.59,0.00010958,2]
[352658128,1739218244296,-2024.21,0.00010958,2]
[352658130,1739218244305,-500.0,0.00010958,2]
[352658132,1739218244314,-1016.16,0.00010958,2]
[352658133,1739218244324,-500.0,0.00010958,2]
[352658136,1739218244333,-500.0,0.00010958,2]
[352658138,1739218244342,-500.0,0.00010958,2]
[352658140,1739218244352,-1711.18,0.00010958,2]
[352658141,1739218244361,-500.0,0.00010958,2]
[352658143,1739218244371,-805.13,0.00010958,2]
[352658145,1739218244381,-500.0,0.00010958,2]
[352658147,1739218244390,-500.0,0.00010958,2]
[352658149,1739218244399,-7205.66,0.00010958,2]
[352658151,1739218244408,-500.0,0.00010958,2]
[352658153,1739218244418,-500.0,0.00010958,2]
[352658155,1739218244427,-590.09,0.00010958,2]
[352658157,1739218244436,-2821.65,0.00010958,2]
[352658159,1739218244444,-1315.5,0.00010958,2]
[352658161,1739218244453,-1866.34,0.00010958,2]
[352658163,1739218244463,-941.33,0.00010958,2]
[352658165,1739218244472,-500.0,0.00010958,2]
[352658167,1739218244482,-500.0,0.00010958,2]
[352658169,1739218244491,-1149.76,0.00010958,2]
[352658171,1739218244501,-500.0,0.00010958,2]
[352658173,1739218244510,-500.0,0.00010958,2]
[352658175,1739218244520,-1019.02,0.00010958,2]
[352658177,1739218244529,-500.0,0.00010958,2]
[352658179,1739218244537,-528.74,0.00010958,2]
[352658181,1739218244547,-510.91,0.00010958,2]
[352658184,1739218244556,-1546.29,0.00010958,2]
[352658185,1739218244565,-500.69518306,0.00010958,2]
[352658187,1739218244574,-500.0,0.00010958,2]
[352658189,1739218244583,-511.32,0.00010958,2]
[352658191,1739218244593,-500.0,0.00010958,2]
[352658193,1739218244602,-500.0,0.00010958,2]
[352658195,1739218244611,-500.0,0.00010958,2]
[352658197,1739218244620,-500.0,0.00010958,2]
[352658199,1739218244630,-500.0,0.00010958,2]
[352658201,1739218244639,-761.04,0.00010958,2]
[352658203,1739218244649,-500.0,0.00010958,2]
[352658205,1739218244658,-500.0,0.00010958,2]
[352658207,1739218244667,-600.94,0.00010958,2]
[352658209,1739218244676,-408.57602487,0.00010958,2]
[352658211,1739218244685,-3187.09,0.00010958,2]
[352658213,1739218244695,-500.0,0.00010958,2]
[352658215,1739218244703,-500.0,0.00010958,2]
[352658217,1739218244713,-500.0,0.00010958,2]
[352658219,1739218244722,-767.23,0.00010958,2]
[352658221,1739218244731,-601.79,0.00010958,2]
[352658223,1739218244741,-2753.81,0.00010958,2]
[352658225,1739218244751,-500.0,0.00010958,2]
[352658227,1739218244762,-642.57,0.00010958,2]
[352658229,1739218244772,-768.83,0.00010958,2]
[352658231,1739218244781,-1782.41,0.00010958,2]
[352658233,1739218244791,-151.79094384,0.00010958,2]
[352658235,1739218244800,-500.0,0.00010958,2]
[352658237,1739218244810,-500.0,0.00010958,2]
[352658239,1739218244819,-500.0,0.00010958,2]
[352658241,1739218244829,-500.0,0.00010958,2]
[352658243,1739218244838,-500.0,0.00010958,2]
[352658245,1739218244848,-500.0,0.00010958,2]
[352658247,1739218244858,-2319.05,0.00010958,2]
[352658249,1739218244868,-500.0,0.00010958,2]
[352658251,1739218244877,-911.34,0.00010958,2]
[352658253,1739218244887,-691.79,0.00010958,2]
[352658255,1739218244897,-1180.39,0.00010958,2]
[352658257,1739218244907,-500.0,0.00010958,2]
[352658259,1739218244918,-500.0,0.00010958,2]
[352658261,1739218244928,-500.0,0.00010958,2]
[352658263,1739218244938,-500.0,0.00010958,2]
[352658265,1739218244947,-500.0,0.00010958,2]
[352658267,1739218244957,-500.0,0.00010958,2]
[352658269,1739218244967,-500.0,0.00010958,2]
[352658271,1739218244976,-1279.67,0.00010958,2]
[352658273,1739218244985,-1809.88,0.00010958,2]
[352658275,1739218244995,-1852.9,0.00010958,2]
[352658277,1739218245004,-1113.98,0.00010958,2]
[352658279,1739218245015,-500.0,0.00010958,2]
[352658281,1739218245025,-1854.12,0.00010958,2]
[352658283,1739218245035,-500.0,0.00010958,2]
[352658285,1739218245045,-500.0,0.00010958,2]
[352658287,1739218245055,-1976.46,0.00010958,2]
[352658289,1739218245065,-500.0,0.00010958,2]
[352658291,1739218245074,-740.04,0.00010958,2]
[352658293,1739218245084,-587.53,0.00010958,2]
[352658295,1739218245093,-500.0,0.00010958,2]
[352658297,1739218245103,-513.53785999,0.00010958,2]
[352658299,1739218245112,-362.82646723,0.00010958,2]
[352658301,1739218245123,-1720.26,0.00010958,2]
[352658303,1739218245132,-500.0,0.00010958,2]
[352658305,1739218245141,-3295.46,0.00010958,2]
[352658307,1739218245151,-1644.78,0.00010958,2]
[352658309,1739218245160,-562.10404623,0.00010958,2]
[352658311,1739218245170,-500.0,0.00010958,2]
[352658313,1739218245180,-500.0,0.00010958,2]
[352658315,1739218245189,-1254.74,0.00010958,2]
[352658317,1739218245198,-1047.4,0.00010958,2]
[352658319,1739218245207,-500.0,0.00010958,2]
[352658321,1739218245217,-577.99,0.00010958,2]